fUST/lending_fUST_20240617
["ID","MTS","AMOUNT","RATE_DAILY","PERIOD"]
[329726271,1718619051147,-1000.0,0.00018,8]
[329726273,1718619051181,-500.0,0.00018082,2]
[329726274,1718619051216,-500.0,0.00018082,2]
[329726275,1718619051253,-500.0,0.00018082,2]
[329726276,1718619051275,-616.34,0.00018082,2]
[329726277,1718619051305,-500.0,0.00018082,2]
[329726278,1718619051319,-885.46,0.00018082,2]
[329726279,1718619051332,-2154.41,0.00018082,2]
[329726280,1718619051352,-3319.86,0.00018082,2]
[329726281,1718619051383,-676.94,0.00018082,2]
[329726282,1718619051421,-644.44,0.00018082,2]
[329726283,1718619051434,-1199.69,0.00018082,2]
[329726284,1718619051445,-832.22,0.00018082,2]
[329726285,1718619051457,-500.0,0.00018082,2]
[329726286,1718619051468,-3294.31,0.00018082,2]
[329726287,1718619051481,-2228.82,0.00018082,2]
[329726288,1718619051493,-512.5,0.00018082,2]
[329726289,1718619051505,-4145.84,0.00018082,2]
[329726290,1718619051518,-3400.03,0.00018082,2]
[329726291,1718619051542,-247.2536749,0.00018108,2]
[329726292,1718619051557,-153.0,0.00018108,2]
[329726293,1718619051573,-153.0,0.00018108,2]
[329726294,1718619051587,-500.0,0.00018356,2]
[329726295,1718619051618,-500.0,0.00018356,2]
[329726296,1718619051642,-500.0,0.00018356,2]
[329726297,1718619051668,-616.34,0.00018356,2]
[329726298,1718619051683,-500.0,0.00018356,2]
[329726300,1718619051697,-885.46,0.00018356,2]
[329726302,1718619051711,-2154.41,0.00018356,2]
[329726304,1718619051742,-3319.86,0.00018356,2]
[329726306,1718619051768,-676.94,0.00018356,2]
[329726308,1718619051836,-644.44,0.00018356,2]
[329726309,1718619051852,-1199.69,0.00018356,2]
[329726310,1718619051864,-832.22,0.00018356,2]
[329726311,1718619051875,-500.0,0.00018356,2]
[329726312,1718619051887,-3294.31,0.00018356,2]
[329726313,1718619051901,-2228.82,0.00018356,2]
[329726314,1718619051941,-512.5,0.00018356,2]
[329726315,1718619051960,-4145.84,0.00018356,2]
[329726316,1718619051977,-3400.03,0.00018356,2]
[329726317,1718619052006,-279.50307432,0.00018438,2]
[329726318,1718619052028,-500.0,0.0001863,2]
[329726319,1718619052040,-464.65832993,0.0001863,2]
[329726320,1718619052081,-500.0,0.0001863,2]
[329726321,1718619052106,-616.34,0.0001863,2]
[329726322,1718619052141,-500.0,0.0001863,2]
[329726323,1718619052157,-885.46,0.0001863,2]
[329726325,1718619052196,-2154.41,0.0001863,2]
[329726326,1718619052217,-3319.86,0.0001863,2]
[329726328,1718619052248,-676.94,0.0001863,2]
[329726330,1718619052270,-644.44,0.0001863,2]
[329726331,1718619052285,-1199.69,0.0001863,2]
[329726333,1718619052298,-832.22,0.0001863,2]
[329726335,1718619052325,-571.54,0.0001863,2]
[329726337,1718619052337,-3294.31,0.0001863,2]
[329726339,1718619052358,-2228.82,0.0001863,2]
[329726341,1718619052377,-512.5,0.0001863,2]
[329726343,1718619052407,-4145.84,0.0001863,2]
[329726345,1718619052420,-3400.03,0.0001863,2]
[329726347,1718619052441,-250.0,0.0001863,2]
[329726349,1718619052458,-500.0,0.00018904,2]
[329726352,1718619052491,-304.45,0.00018904,2]
[329726354,1718619052506,-616.34,0.00018904,2]
[329726355,1718619052519,-500.0,0.00018904,2]
[329726356,1718619052534,-885.46,0.00018904,2]
[329726357,1718619052550,-2154.41,0.00018904,2]
[329726358,1718619052572,-3319.86,0.00018904,2]
[329726359,1718619052613,-676.94,0.00018904,2]
[329726360,1718619052633,-644.44,0.00018904,2]
[329726361,1718619052664,-1199.69,0.00018904,2]
[329726362,1718619052690,-832.22,0.00018904,2]
[329726363,1718619052729,-3294.31,0.00018904,2]
[329726364,1718619052741,-2228.82,0.00018904,2]
[329726365,1718619052753,-512.5,0.00018904,2]
[329726366,1718619052766,-4145.84,0.00018904,2]
[329726367,1718619052792,-3400.03,0.00018904,2]
[329726368,1718619052811,-151.0,0.0001894,2]
[329726369,1718619052847,-151.0,0.0001894,2]
[329726370,1718619052867,-321.662332,0.00018986,2]
[329726371,1718619052900,-1502.7368125,0.00018995,2]
[329726372,1718619052911,-500.0,0.00019,2]
[329726373,1718619052937,-2000.0,0.00019,4]
[329726374,1718619052953,-313.2749162,0.00019,2]
[329726375,1718619052965,-1000.0,0.00019,9]
[329726376,1718619052977,-589.15804862,0.00019,15]
[329726377,1718619052991,-843.0,0.00019,2]
[329726378,1718619053005,-3162.0,0.00019,2]
[329726379,1718619053026,-3176.18928276,0.00019178,2]
[329726380,1718619053037,-5301.09587578,0.00019178,2]
[329726381,1718619053065,-5301.09587578,0.00019178,2]
[329726382,1718619053076,-5301.09587578,0.00019178,2]
[329726383,1718619053089,-5301.09587578,0.00019178,2]
[329726384,1718619053119,-5301.09587578,0.00019178,2]
[329726385,1718619053141,-5301.09587578,0.00019178,2]
[329726386,1718619053166,-5301.09587578,0.00019178,2]
[329726387,1718619053185,-5301.09587578,0.00019178,2]
[329726388,1718619053214,-5301.09587578,0.00019178,2]
[329726389,1718619053257,-5301.09587578,0.00019178,2]
[329726390,1718619053300,-5301.09587578,0.00019178,2]
[329726391,1718619053315,-5301.09587578,0.00019178,2]
[329726392,1718619053331,-5301.09587578,0.00019178,2]
[329726393,1718619053353,-100.64773215,0.00019178,2]
[329726397,1718619053490,-2224.34679921,0.00019178,2]
[329726399,1718619053526,-1571.17261758,0.00019178,2]
[329726401,1718619053543,-1404.92872684,0.00019178,2]
[329726403,1718619053556,-1170.73982955,0.00019178,2]
[329726405,1718619053589,-1055.67040486,0.00019178,2]
[329726406,1718619053616,-1093.65,0.00019178,2]
[329726409,1718619053651,-1981.03564137,0.00019178,2]
[329726411,1718619053664,-5301.09587578,0.00019178,2]
[329726413,1718619053679,-5301.09587578,0.00019178,2]
[329726415,1718619053709,-5301.09587578,0.00019178,2]
[329726416,1718619053741,-5301.09587578,0.00019178,2]
[329726418,1718619053756,-5301.09587578,0.00019178,2]
[329726420,1718619053771,-5301.09587578,0.00019178,2]
[329726422,1718619053785,-1317.90893099,0.00019178,2]
[329726431,1718619054063,-879.65214524,0.00019178,2]
[329726619,1718619195581,3000.0,0.000225,30]
[329726626,1718619794222,3000.0,0.000225,30]
[329726630,1718619988472,2001.07,0.000225,30]
[329726662,1718620236322,-339.5000166,0.00015571,2]
[329726727,1718620245534,-3450.2973316,0.00015571,2]
[329726728,1718620245560,-915.12525006,0.00016338,2]
[329726729,1718620245580,-1424.80454403,0.00016338,2]
[329726730,1718620245598,-155.01550155,0.00016436,2]
[329726731,1718620245612,-300.0,0.00016437,2]
[329726732,1718620245627,-173.69033743,0.00016438,2]
[329726733,1718620245642,-326.30966257,0.00016438,2]
[329726734,1718620245660,-500.0,0.00016438,2]
[329726735,1718620245681,-500.0,0.00016438,2]
[329726736,1718620245695,-500.0,0.00016438,2]
[329726737,1718620245707,-500.0,0.00016438,2]
[329726738,1718620245719,-500.0,0.00016438,2]
[329726739,1718620245733,-500.0,0.00016438,2]
[329726740,1718620245751,-500.0,0.00016438,2]
[329726741,1718620245780,-500.0,0.00016438,2]
[329726742,1718620245794,-500.0,0.00016438,2]
[329726743,1718620245819,-500.0,0.00016438,2]
[329726744,1718620245834,-500.0,0.00016438,2]
[329726745,1718620245846,-504.2910003,0.00016438,2]
[329726746,1718620245858,-500.0,0.00016438,2]
[329726747,1718620245873,-500.0,0.00016438,2]
[329726748,1718620245889,-516.78545314,0.00016438,2]
[329726749,1718620245903,-500.0,0.00016438,2]
[329726750,1718620245917,-500.0,0.00016438,2]
[329726751,1718620245933,-500.0,0.00016438,2]
[329726752,1718620245954,-500.0,0.00016438,2]
[329726753,1718620245969,-500.0,0.00016438,2]
[329726754,1718620245984,-507.77151103,0.00016438,2]
[329726755,1718620245996,-500.0,0.00016438,2]
[329726756,1718620246007,-500.0,0.00016438,2]
[329726757,1718620246019,-500.0,0.00016438,2]
[329726758,1718620246032,-202.1669195,0.00016438,2]
[329726759,1718620246044,-500.0,0.00016438,2]
[329726760,1718620246055,-500.0,0.00016438,2]
[329726761,1718620246067,-500.0,0.00016438,2]
[329726762,1718620246081,-500.0,0.00016438,2]
[329726763,1718620246093,-505.13325348,0.00016438,2]
[329726764,1718620246124,-500.0,0.00016438,2]
[329726765,1718620246146,-316.9048981,0.00016438,2]
[329726766,1718620246165,-500.0,0.00016438,2]
[329726767,1718620246177,-500.0,0.00016438,2]
[329726768,1718620246191,-500.0,0.00016438,2]
[329726769,1718620246206,-1005.54958819,0.00016438,2]
[329726770,1718620246242,-177.40895383,0.00016438,2]
[329726771,1718620246255,-505.12147907,0.00016438,2]
[329726772,1718620246285,-505.76873347,0.00016438,2]
[329726773,1718620246324,-510.40305204,0.00016438,2]
[329726774,1718620246339,-500.0,0.00016438,2]
[329726775,1718620246353,-500.0,0.00016438,2]
[329726776,1718620246406,-312.67994656,0.00016438,2]
[329726777,1718620246456,-501.42463611,0.00016438,2]
[329726778,1718620246471,-500.0,0.00016438,2]
[329726779,1718620246488,-500.0,0.00016438,2]
[329726780,1718620246508,-532.1305393,0.00016438,2]
[329726781,1718620246530,-500.0,0.00016438,2]
[329726782,1718620246554,-500.0,0.00016438,2]
[329726783,1718620246583,-500.70962523,0.00016438,2]
[329726784,1718620246600,-500.0,0.00016438,2]
[329726785,1718620246624,-500.0,0.00016438,2]
[329726786,1718620246649,-500.0,0.00016438,2]
[329726787,1718620246667,-500.0,0.00016438,2]
[329726788,1718620246701,-517.65303447,0.00016438,2]
[329726789,1718620246729,-536.78976528,0.00016438,2]
[329726790,1718620246767,-500.0,0.00016438,2]
[329726791,1718620246782,-500.0,0.00016438,2]
[329726792,1718620246798,-359.5536716,0.00016438,2]
[329726793,1718620246813,-500.0,0.00016438,2]
[329726794,1718620246858,-250.0,0.00016438,2]
[329726795,1718620246882,-504.15785822,0.00016438,2]
[329726796,1718620246931,-534.44535404,0.00016438,2]
[329726797,1718620246981,-500.0,0.00016438,2]
[329726798,1718620246994,-500.0,0.00016438,2]
[329726799,1718620247008,-536.2969739,0.00016438,2]
[329726800,1718620247019,-500.0,0.00016438,2]
[329726801,1718620247035,-555.66724351,0.00016438,2]
[329726802,1718620247060,-500.0,0.00016438,2]
[329726804,1718620247079,-500.41397924,0.00016438,2]
[329726806,1718620247093,-500.0,0.00016438,2]
[329726808,1718620247105,-500.0,0.00016438,2]
[329726810,1718620247119,-502.00465675,0.00016438,2]
[329726813,1718620247144,-371.25737645,0.00016438,2]
[329726816,1718620247207,-500.0,0.00016438,2]
[329726818,1718620247232,-500.0,0.00016438,2]
[329726821,1718620247285,-365.61980019,0.00016438,2]
[329726823,1718620247319,-500.0,0.00016438,2]
[329726825,1718620247351,-173.25819918,0.00016438,2]
[329726827,1718620247368,-500.0,0.00016438,2]
[329726828,1718620247391,-500.0,0.00016438,2]
[329726829,1718620247409,-500.0,0.00016438,2]
[329726830,1718620247444,-500.0,0.00016438,2]
[329726831,1718620247458,-500.0,0.00016438,2]
[329726832,1718620247495,-503.57197049,0.00016438,2]
[329726833,1718620247510,-500.0,0.00016438,2]
[329726834,1718620247522,-500.0,0.00016438,2]
[329726835,1718620247535,-500.0,0.00016438,2]
[329726836,1718620247562,-500.0,0.00016438,2]
[329726837,1718620247617,-501.70700089,0.00016438,2]
[329726838,1718620247662,-500.0,0.00016438,2]
[329726839,1718620247680,-502.57244896,0.00016438,2]
[329726840,1718620247693,-500.29798414,0.00016438,2]
[329726841,1718620247706,-500.0,0.00016438,2]
[329726842,1718620247721,-538.0755453,0.00016438,2]
[329726843,1718620247736,-500.0,0.00016438,2]
[329726844,1718620247748,-500.0,0.00016438,2]
[329726845,1718620247759,-500.0,0.00016438,2]
[329726846,1718620247773,-500.0,0.00016438,2]
[329726847,1718620247788,-500.0,0.00016438,2]
[329726848,1718620247806,-500.0,0.00016438,2]
[329726849,1718620247823,-500.0,0.00016438,2]
[329726850,1718620247853,-505.73909259,0.00016438,2]
[329726851,1718620247867,-560.51447075,0.00016438,2]
[329726852,1718620247883,-500.0,0.00016438,2]
[329726853,1718620247898,-500.0,0.00016438,2]
[329726854,1718620247913,-500.0,0.00016438,2]
[329726855,1718620247945,-500.0,0.00016438,2]
[329726856,1718620247980,-500.0,0.00016438,2]
[329726857,1718620248007,-500.0,0.00016438,2]
[329726858,1718620248020,-427.91169976,0.00016438,2]
[329726860,1718620248044,-500.0,0.00016438,2]
[329726862,1718620248057,-500.0,0.00016438,2]
[329726864,1718620248077,-500.64150737,0.00016438,2]
[329726865,1718620248107,-500.0,0.00016438,2]
[329726866,1718620248121,-536.83601223,0.00016438,2]
[329726867,1718620248134,-507.28380526,0.00016438,2]
[329726868,1718620248149,-500.0,0.00016438,2]
[329726869,1718620248161,-214.14096313,0.00016438,2]
[329726870,1718620248173,-526.31069258,0.00016438,2]
[329726871,1718620248204,-509.74139649,0.00016438,2]
[329726872,1718620248232,-500.0,0.00016438,2]
[329726873,1718620248262,-504.71014263,0.00016438,2]
[329726874,1718620248286,-500.0,0.00016438,2]
[329726875,1718620248308,-500.0,0.00016438,2]
[329726876,1718620248331,-500.0,0.00016438,2]
[329726877,1718620248346,-500.97699365,0.00016438,2]
[329726878,1718620248358,-156.54097026,0.00016438,2]
[329726879,1718620248369,-504.21914469,0.00016438,2]
[329726880,1718620248383,-500.0,0.00016438,2]
[329726881,1718620248399,-247.98604249,0.00016438,2]
[329726882,1718620248412,-500.0,0.00016438,2]
[329726883,1718620248431,-507.42722885,0.00016438,2]
[329726884,1718620248444,-500.0,0.00016438,2]
[329726885,1718620248458,-500.0,0.00016438,2]
[329726886,1718620248488,-504.67233855,0.00016438,2]
[329726888,1718620248500,-500.0,0.00016438,2]
[329726890,1718620248512,-505.41905001,0.00016438,2]
[329726891,1718620248533,-500.0,0.00016438,2]
[329726892,1718620248545,-500.0,0.00016438,2]
[329726893,1718620248568,-500.0,0.00016438,2]
[329726894,1718620248581,-500.0,0.00016438,2]
[329726895,1718620248593,-500.0,0.00016438,2]
[329726896,1718620248615,-500.0,0.00016438,2]
[329726897,1718620248631,-500.0,0.00016438,2]
[329726898,1718620248642,-504.28789862,0.00016438,2]
[329726899,1718620248660,-500.0,0.00016438,2]
[329726900,1718620248683,-500.0,0.00016438,2]
[329726901,1718620248699,-500.37175536,0.00016438,2]
[329726902,1718620248721,-500.0,0.00016438,2]
[329726903,1718620248749,-500.0,0.00016438,2]
[329726904,1718620248777,-500.0,0.00016438,2]
[329726905,1718620248793,-500.0,0.00016438,2]
[329726906,1718620248838,-500.0,0.00016438,2]
[329726907,1718620248868,-500.0,0.00016438,2]
[329726908,1718620248913,-500.0,0.00016438,2]
[329726909,1718620248935,-271.86634984,0.00016438,2]
[329726910,1718620248965,-500.0,0.00016438,2]
[329726911,1718620248983,-500.0,0.00016438,2]
[329726912,1718620249012,-528.33980179,0.00016438,2]
[329726913,1718620249023,-500.0,0.00016438,2]
[329726914,1718620249048,-500.0,0.00016438,2]
[329726915,1718620249063,-304.84298366,0.00016438,2]
[329726916,1718620249092,-500.0,0.00016438,2]
[329726917,1718620249123,-500.0,0.00016438,2]
[329726918,1718620249185,-500.0,0.00016438,2]
[329726919,1718620249202,-505.25624972,0.00016438,2]
[329726920,1718620249214,-500.0,0.00016438,2]
[329726921,1718620249225,-121.22327566,0.00016438,2]
[329726922,1718620249249,-158.84965834,0.00016438,2]
[329726923,1718620249261,-500.0,0.00016438,2]
[329726924,1718620249293,-500.0,0.00016438,2]
[329726925,1718620249304,-500.0,0.00016438,2]
[329726926,1718620249340,-500.0,0.00016438,2]
[329726927,1718620249354,-500.0,0.00016438,2]
[329726928,1718620249422,-500.0,0.00016438,2]
[329726929,1718620249438,-500.0,0.00016438,2]
[329726930,1718620249470,-500.0,0.00016438,2]
[329726931,1718620249490,-500.0,0.00016438,2]
[329726932,1718620249513,-500.0,0.00016438,2]
[329726933,1718620249537,-500.0,0.00016438,2]
[329726934,1718620249592,-154.50286462,0.00016438,2]
[329726935,1718620249606,-500.0,0.00016438,2]
[329726936,1718620249619,-500.0,0.00016438,2]
[329726937,1718620249631,-500.0,0.00016438,2]
[329726938,1718620249660,-500.0,0.00016438,2]
[329726939,1718620249681,-500.0,0.00016438,2]
[329726940,1718620249701,-500.0,0.00016438,2]
[329726941,1718620249714,-500.0,0.00016438,2]
[329726942,1718620249726,-540.91071539,0.00016438,2]
[329726943,1718620249760,-500.0,0.00016438,2]
[329726944,1718620249784,-500.0,0.00016438,2]
[329726945,1718620249799,-63.98263075,0.00016438,2]
[329726946,1718620249818,-436.01736925,0.00016438,2]
[329726947,1718620249835,-500.0,0.00016438,2]
[329726948,1718620249851,-500.0,0.00016438,2]
[329726949,1718620249864,-500.0,0.00016438,2]
[329726950,1718620249891,-500.0,0.00016438,2]
[329726951,1718620249908,-500.0,0.00016438,2]
[329726952,1718620249920,-500.0,0.00016438,2]
[329726953,1718620249931,-307.20405837,0.00016438,2]
[329726954,1718620249956,-192.79594163,0.00016438,2]
[329726955,1718620249974,-500.0,0.00016438,2]
[329726956,1718620249990,-522.21160075,0.00016438,2]
[329726957,1718620250009,-500.0,0.00016438,2]
[329726958,1718620250026,-500.0,0.00016438,2]
[329726959,1718620250039,-500.0,0.00016438,2]
[329726960,1718620250054,-500.0,0.00016438,2]
[329726961,1718620250075,-500.0,0.00016438,2]
[329726962,1718620250094,-500.0,0.00016438,2]
[329726963,1718620250107,-500.0,0.00016438,2]
[329726964,1718620250126,-500.0,0.00016438,2]
[329726965,1718620250165,-500.0,0.00016438,2]
[329726966,1718620250215,-150.70352085,0.00016438,2]
[329726967,1718620250252,-175.60271591,0.00016438,2]
[329726968,1718620250275,-500.0,0.00016438,2]
[329726969,1718620250398,-500.0,0.00016438,2]
[329726970,1718620250418,-500.0,0.00016438,2]
[329726971,1718620250442,-160.06013604,0.00016438,2]
[329726972,1718620250461,-500.0,0.00016438,2]
[329726974,1718620250473,-502.69735791,0.00016438,2]
[329726976,1718620250489,-500.0,0.00016438,2]
[329726977,1718620250502,-151.0,0.00016438,2]
[329726978,1718620250513,-500.0,0.00016438,2]
[329726979,1718620250524,-500.0,0.00016438,2]
[329726980,1718620250577,-500.0,0.00016438,2]
[329726981,1718620250594,-500.0,0.00016438,2]
[329726982,1718620250621,-500.0,0.00016438,2]
[329726983,1718620250650,-500.0,0.00016438,2]
[329726984,1718620250697,-458.98398221,0.00016438,2]
[329726985,1718620250716,-500.0,0.00016438,2]
[329726986,1718620250730,-500.0,0.00016438,2]
[329726987,1718620250740,-500.0,0.00016438,2]
[329726988,1718620250751,-500.0,0.00016438,2]
[329726989,1718620250765,-500.0,0.00016438,2]
[329726990,1718620250783,-634.80799017,0.00016438,2]
[329726991,1718620250795,-500.0,0.00016438,2]
[329726992,1718620250810,-500.0,0.00016438,2]
[329726993,1718620250837,-500.0,0.00016438,2]
[329726994,1718620250853,-500.0,0.00016438,2]
[329726995,1718620250864,-500.0,0.00016438,2]
[329726996,1718620250878,-500.0,0.00016438,2]
[329726997,1718620250892,-500.0,0.00016438,2]
[329726998,1718620250925,-500.0,0.00016438,2]
[329727000,1718620250954,-500.0,0.00016438,2]
[329727002,1718620250969,-500.85481312,0.00016438,2]
[329727005,1718620250984,-500.0,0.00016438,2]
[329727007,1718620251015,-500.0,0.00016438,2]
[329727008,1718620251034,-500.0,0.00016438,2]
[329727010,1718620251046,-500.0,0.00016438,2]
[329727012,1718620251058,-500.0,0.00016438,2]
[329727014,1718620251076,-263.96179089,0.00016438,2]
[329727016,1718620251104,-605.08447395,0.00016438,2]
[329727018,1718620251117,-500.0,0.00016438,2]
[329727020,1718620251128,-500.0,0.00016438,2]
[329727023,1718620251147,-500.0,0.00016438,2]
[329727024,1718620251164,-500.0,0.00016438,2]
[329727026,1718620251188,-500.0,0.00016438,2]
[329727028,1718620251232,-500.0,0.00016438,2]
[329727032,1718620251280,-253.83939929,0.00016438,2]
[329727035,1718620251322,-500.0,0.00016438,2]
[329727037,1718620251346,-500.0,0.00016438,2]
[329727041,1718620251383,-598.30034209,0.00016438,2]
[329727043,1718620251409,-500.0,0.00016438,2]
[329727044,1718620251430,-500.0,0.00016438,2]
[329727047,1718620251446,-500.0,0.00016438,2]
[329727049,1718620251460,-504.32518635,0.00016438,2]
[329727051,1718620251471,-500.0,0.00016438,2]
[329727052,1718620251489,-500.0,0.00016438,2]
[329727055,1718620251509,-500.0,0.00016438,2]
[329727056,1718620251541,-500.0,0.00016438,2]
[329727058,1718620251559,-500.0,0.00016438,2]
[329727059,1718620251578,-500.0,0.00016438,2]
[329727062,1718620251607,-169.73002723,0.00016438,2]
[329727064,1718620251622,-500.0,0.00016438,2]
[329727066,1718620251634,-500.0,0.00016438,2]
[329727068,1718620251647,-500.0,0.00016438,2]
[329727071,1718620251666,-167.85904735,0.00016438,2]
[329727073,1718620251692,-151.0,0.00016438,2]
[329727075,1718620251708,-151.0,0.00016438,2]
[329727077,1718620251726,-500.0,0.00016438,2]
[329727079,1718620251737,-500.0,0.00016438,2]
[329727080,1718620251754,-500.0,0.00016438,2]
[329727082,1718620251769,-500.0,0.00016438,2]
[329727083,1718620251781,-500.0,0.00016438,2]
[329727085,1718620251793,-500.0,0.00016438,2]
[329727087,1718620251806,-504.29940407,0.00016438,2]
[329727089,1718620251824,-500.0,0.00016438,2]
[329727091,1718620251847,-500.0,0.00016438,2]
[329727093,1718620251862,-500.0,0.00016438,2]
[329727096,1718620251877,-500.0,0.00016438,2]
[329727098,1718620251898,-500.0,0.00016438,2]
[329727101,1718620251939,-500.0,0.00016438,2]
[329727104,1718620251971,-500.0,0.00016438,2]
[329727106,1718620251999,-500.0,0.00016438,2]
[329727107,1718620252028,-500.0,0.00016438,2]
[329727108,1718620252042,-500.0,0.00016438,2]
[329727109,1718620252093,-228.95400368,0.00016438,2]
[329727110,1718620252106,-500.0,0.00016438,2]
[329727111,1718620252122,-500.0,0.00016438,2]
[329727112,1718620252149,-500.0,0.00016438,2]
[329727114,1718620252164,-505.73019558,0.00016438,2]
[329727117,1718620252179,-500.0,0.00016438,2]
[329727119,1718620252213,-502.77247045,0.00016438,2]
[329727120,1718620252227,-500.0,0.00016438,2]
[329727121,1718620252240,-500.0,0.00016438,2]
[329727122,1718620252251,-500.0,0.00016438,2]
[329727123,1718620252266,-500.0,0.00016438,2]
[329727124,1718620252290,-500.0,0.00016438,2]
[329727125,1718620252312,-500.0,0.00016438,2]
[329727126,1718620252337,-500.0,0.00016438,2]
[329727127,1718620252354,-500.0,0.00016438,2]
[329727128,1718620252372,-500.0,0.00016438,2]
[329727129,1718620252392,-500.0,0.00016438,2]
[329727130,1718620252448,-611.42503127,0.00016438,2]
[329727131,1718620252480,-500.0,0.00016438,2]
[329727132,1718620252491,-500.0,0.00016438,2]
[329727133,1718620252507,-500.0,0.00016438,2]
[329727134,1718620252518,-500.0,0.00016438,2]
[329727136,1718620252532,-500.0,0.00016438,2]
[329727137,1718620252544,-500.0,0.00016438,2]
[329727138,1718620252557,-513.72321952,0.00016438,2]
[329727139,1718620252571,-500.0,0.00016438,2]
[329727140,1718620252585,-500.0,0.00016438,2]
[329727141,1718620252603,-500.0,0.00016438,2]
[329727142,1718620252617,-500.0,0.00016438,2]
[329727143,1718620252630,-500.0,0.00016438,2]
[329727144,1718620252643,-508.61797665,0.00016438,2]
[329727145,1718620252655,-500.0,0.00016438,2]
[329727146,1718620252670,-505.37461328,0.00016438,2]
[329727147,1718620252681,-556.21509564,0.00016438,2]
[329727148,1718620252694,-500.0,0.00016438,2]
[329727149,1718620252707,-500.0,0.00016438,2]
[329727150,1718620252723,-500.0,0.00016438,2]
[329727151,1718620252748,-500.0,0.00016438,2]
[329727152,1718620252765,-500.0,0.00016438,2]
[329727153,1718620252780,-500.0,0.00016438,2]
[329727154,1718620252794,-500.0,0.00016438,2]
[329727155,1718620252807,-500.0,0.00016438,2]
[329727156,1718620252823,-500.0,0.00016438,2]
[329727157,1718620252834,-500.0,0.00016438,2]
[329727158,1718620252848,-500.0,0.00016438,2]
[329727159,1718620252859,-526.21888024,0.00016438,2]
[329727160,1718620252870,-500.0,0.00016438,2]
[329727161,1718620252881,-500.0,0.00016438,2]
[329727162,1718620252895,-489.59314257,0.00016438,2]
[329727163,1718620252905,-500.0,0.00016438,2]
[329727164,1718620252917,-500.0,0.00016438,2]
[329727165,1718620252928,-500.0,0.00016438,2]
[329727166,1718620252941,-500.0,0.00016438,2]
[329727167,1718620252956,-500.0,0.00016438,2]
[329727168,1718620252969,-500.0,0.00016438,2]
[329727169,1718620252981,-500.0,0.00016438,2]
[329727170,1718620252996,-500.0,0.00016438,2]
[329727171,1718620253016,-500.0,0.00016438,2]
[329727172,1718620253026,-500.0,0.00016438,2]
[329727173,1718620253054,-500.0,0.00016438,2]
[329727174,1718620253065,-500.0,0.00016438,2]
[329727175,1718620253081,-633.26196283,0.00016438,2]
[329727176,1718620253100,-535.00927245,0.00016438,2]
[329727177,1718620253112,-531.20347033,0.00016438,2]
[329727178,1718620253123,-500.0,0.00016438,2]
[329727179,1718620253138,-516.52,0.00016438,2]
[329727180,1718620253153,-151.0,0.00016438,2]
[329727181,1718620253169,-151.0,0.00016438,2]
[329727182,1718620253181,-502.28606211,0.00016438,2]
[329727183,1718620253192,-500.0,0.00016438,2]
[329727184,1718620253205,-517.455171,0.00016438,2]
[329727185,1718620253218,-500.0,0.00016438,2]
[329727186,1718620253235,-500.83194274,0.00016438,2]
[329727187,1718620253247,-500.0,0.00016438,2]
[329727188,1718620253258,-500.0,0.00016438,2]